fUST/lending_fUST_20240415
["ID","MTS","AMOUNT","RATE_DAILY","PERIOD"]
[322661350,1713195041102,-432.1907132,0.00032875,2]
[322661351,1713195041111,-500.0,0.00032875,2]
[322661352,1713195041120,-500.0,0.00032875,2]
[322661353,1713195041129,-500.0,0.00032875,2]
[322661354,1713195041138,-500.0,0.00032875,2]
[322661355,1713195041148,-500.0,0.00032875,2]
[322661356,1713195041157,-500.0,0.00032875,2]
[322661357,1713195041167,-500.0,0.00032875,2]
[322661358,1713195041176,-581.19120691,0.00032875,2]
[322661359,1713195041186,-500.0,0.00032875,2]
[322661360,1713195041195,-500.0,0.00032875,2]
[322661361,1713195041204,-500.0,0.00032875,2]
[322661362,1713195041213,-384.87765707,0.00032875,2]
[322661363,1713195041223,-500.0,0.00032875,2]
[322661364,1713195041233,-500.0,0.00032875,2]
[322661365,1713195041243,-500.0,0.00032875,2]
[322661366,1713195041252,-500.0,0.00032875,2]
[322661367,1713195041261,-500.0,0.00032875,2]
[322661368,1713195041270,-500.0,0.00032875,2]
[322661369,1713195041280,-603.19636075,0.00032875,2]
[322661370,1713195041289,-26422.97254017,0.00032876,5]
[322661371,1713195041299,-602.80168772,0.00032876,7]
[322661372,1713195041309,-500.0,0.00032876,7]
[322661373,1713195041319,-532.19,0.00032876,7]
[322661374,1713195041330,-500.0,0.00032876,7]
[322661375,1713195041340,-500.0,0.00032876,7]
[322661376,1713195041351,-500.0,0.00032876,7]
[322661377,1713195041361,-500.0,0.00032876,7]
[322661378,1713195041370,-504.5621804,0.00032876,7]
[322661380,1713195041379,-500.0,0.00032876,7]
[322661382,1713195041388,-500.0,0.00032876,7]
[322661384,1713195041397,-500.0,0.00032876,7]
[322661386,1713195041407,-500.0,0.00032876,7]
[322661388,1713195041416,-500.0,0.00032876,7]
[322661390,1713195041425,-534.45033612,0.00032876,7]
[322661392,1713195041434,-500.0,0.00032876,7]
[322661394,1713195041443,-638.73076859,0.00032876,7]
[322661396,1713195041452,-480.1215,0.00032876,7]
[322661398,1713195041462,-500.0,0.00032876,7]
[322661400,1713195041472,-503.32523261,0.00032876,7]
[322661401,1713195041481,-500.0,0.00032876,7]
[322661402,1713195041491,-501.62545804,0.00032876,7]
[322661403,1713195041500,-500.0,0.00032876,7]
[322661404,1713195041511,-500.0,0.00032876,7]
[322661405,1713195041523,-500.0,0.00032876,7]
[322661406,1713195041533,-500.0,0.00032876,7]
[322661407,1713195041542,-500.0,0.00032876,7]
[322661408,1713195041554,-500.0,0.00032876,7]
[322661410,1713195041563,-500.0,0.00032876,7]
[322661412,1713195041573,-531.8392121,0.00032876,7]
[322661414,1713195041583,-500.0,0.00032876,7]
[322661416,1713195041596,-500.0,0.00032876,7]
[322661418,1713195041606,-500.0,0.00032876,7]
[322661420,1713195041617,-517.7,0.00032876,7]
[322661421,1713195041626,-500.0,0.00032876,7]
[322661423,1713195041638,-538.22322364,0.00032876,7]
[322661424,1713195041648,-500.0,0.00032876,7]
[322661425,1713195041658,-500.0,0.00032876,7]
[322661426,1713195041668,-503.14910431,0.00032876,7]
[322661427,1713195041692,-500.0,0.00032876,7]
[322661428,1713195041703,-504.83035227,0.00032876,7]
[322661429,1713195041717,-500.0,0.00032876,7]
[322661430,1713195041731,-500.0,0.00032876,7]
[322661431,1713195041746,-505.16619145,0.00032876,7]
[322661432,1713195041759,-500.0,0.00032876,7]
[322661433,1713195041771,-500.0,0.00032876,7]
[322661434,1713195041784,-500.6998944,0.00032876,2]
[322661435,1713195041796,-500.0,0.00032876,7]
[322661436,1713195041811,-500.0,0.00032876,7]
[322661437,1713195041825,-500.0,0.00032876,7]
[322661438,1713195041841,-500.0,0.00032876,7]
[322661439,1713195041856,-910.32,0.00032876,7]
[322661440,1713195041868,-500.0,0.00032876,7]
[322661441,1713195041879,-500.0,0.00032876,7]
[322661442,1713195041893,-500.0,0.00032876,7]
[322661443,1713195041906,-500.0,0.00032876,7]
[322661444,1713195041919,-500.0,0.00032876,7]
[322661445,1713195041932,-523.2291265,0.00032876,7]
[322661446,1713195041946,-415.2594982,0.00032876,7]
[322661447,1713195041958,-500.0,0.00032876,7]
[322661448,1713195041970,-492.6213127,0.00032876,7]
[322661449,1713195041982,-500.0,0.00032876,7]
[322661450,1713195041998,-513.75,0.00032876,7]
[322661451,1713195042011,-300.0,0.00032876,7]
[322661452,1713195042025,-500.0,0.00032876,7]
[322661453,1713195042037,-780.2,0.00032876,7]
[322661454,1713195042049,-500.0,0.00032876,7]
[322661455,1713195042062,-500.0,0.00032876,7]
[322661456,1713195042075,-500.0,0.00032876,7]
[322661457,1713195042087,-501.7795431,0.00032876,7]
[322661458,1713195042104,-500.0,0.00032876,7]
[322661459,1713195042117,-500.0,0.00032876,7]
[322661460,1713195042132,-500.0,0.00032876,7]
[322661461,1713195042146,-511.10971366,0.00032876,7]
[322661462,1713195042159,-500.0,0.00032876,7]
[322661463,1713195042171,-503.84800836,0.00032876,14]
[322661464,1713195042182,-500.0,0.00032876,7]
[322661465,1713195042193,-500.0,0.00032876,2]
[322661466,1713195042205,-2806.25,0.00032876,7]
[322661467,1713195042218,-500.0,0.00032876,7]
[322661468,1713195042229,-500.0,0.00032876,7]
[322661469,1713195042241,-615.25291108,0.00032876,7]
[322661470,1713195042254,-387.78121335,0.00032876,2]
[322661471,1713195042265,-500.0,0.00032876,7]
[322661472,1713195042276,-500.0,0.00032876,7]
[322661473,1713195042287,-500.0,0.00032876,7]
[322661474,1713195042299,-831.76,0.00032876,7]
[322661475,1713195042311,-500.0,0.00032876,7]
[322661476,1713195042323,-500.0,0.00032876,7]
[322661477,1713195042335,-500.0,0.00032876,7]
[322661478,1713195042350,-203.28674273,0.00032876,7]
[322661479,1713195042363,-500.0,0.00032876,7]
[322661480,1713195042375,-502.95274068,0.00032876,7]
[322661481,1713195042387,-502.2059746,0.00032876,7]
[322661482,1713195042399,-508.33,0.00032876,7]
[322661483,1713195042412,-500.0,0.00032876,7]
[322661484,1713195042423,-500.0,0.00032876,7]
[322661485,1713195042435,-510.83351956,0.00032876,7]
[322661486,1713195042447,-500.0,0.00032876,7]
[322661487,1713195042459,-497.770496,0.00032876,7]
[322661488,1713195042471,-500.0,0.00032876,7]
[322661489,1713195042482,-500.0,0.00032876,7]
[322661490,1713195042494,-628.06593109,0.00032876,7]
[322661491,1713195042506,-526.18882919,0.00032876,7]
[322661492,1713195042518,-500.0,0.00032876,7]
[322661493,1713195042532,-500.0,0.00032876,7]
[322661494,1713195042544,-538.63245824,0.00032876,7]
[322661495,1713195042557,-500.0,0.00032876,7]
[322661496,1713195042569,-500.0,0.00032876,7]
[322661497,1713195042581,-500.0,0.00032876,7]
[322661498,1713195042594,-2045.35,0.00032876,7]
[322661499,1713195042606,-500.0,0.00032876,7]
[322661500,1713195042618,-502.36828373,0.00032876,7]
[322661501,1713195042630,-515.23065907,0.00032876,7]
[322661502,1713195042642,-896.97,0.00032876,7]
[322661503,1713195042654,-500.0,0.00032876,7]
[322661504,1713195042667,-500.0,0.00032876,7]
[322661505,1713195042679,-500.0,0.00032876,7]
[322661506,1713195042692,-500.0,0.00032876,7]
[322661507,1713195042704,-500.0,0.00032876,7]
[322661508,1713195042717,-490.48546717,0.00032876,7]
[322661509,1713195042730,-504.42427962,0.00032876,7]
[322661510,1713195042742,-500.0,0.00032876,7]
[322661511,1713195042754,-500.0,0.00032876,7]
[322661512,1713195042766,-500.0,0.00032876,7]
[322661513,1713195042779,-500.0,0.00032876,7]
[322661514,1713195042792,-500.0,0.00032876,7]
[322661515,1713195042804,-500.34633543,0.00032876,7]
[322661516,1713195042816,-500.0,0.00032876,7]
[322661517,1713195042828,-500.0,0.00032876,7]
[322661518,1713195042841,-500.0,0.00032876,7]
[322661519,1713195042859,-151.0,0.00032876,2]
[322661520,1713195042871,-151.0,0.00032876,2]
[322661521,1713195042885,-151.0,0.00032876,2]
[322661522,1713195042899,-500.0,0.00032876,7]
[322661523,1713195042911,-151.0,0.00032876,2]
[322661524,1713195042923,-503.68129025,0.00032876,7]
[322661525,1713195042935,-500.0,0.00032876,7]
[322661526,1713195042948,-631.77117605,0.00032876,7]
[322661527,1713195042961,-544.1,0.00032876,7]
[322661528,1713195042973,-500.0,0.00032876,7]
[322661529,1713195042984,-500.0,0.00032876,7]
[322661530,1713195042995,-500.43994615,0.00032876,7]
[322661531,1713195043007,-221.76148875,0.00032876,7]
[322661532,1713195043020,-500.0,0.00032876,7]
[322661533,1713195043032,-180.76597381,0.00032876,7]
[322661534,1713195043044,-500.0,0.00032876,7]
[322661535,1713195043055,-502.23373953,0.00032876,7]
[322661536,1713195043067,-500.0,0.00032876,7]
[322661539,1713195043078,-501.25342993,0.00032876,7]
[322661541,1713195043088,-500.0,0.00032876,7]
[322661542,1713195043103,-500.0,0.00032876,7]
[322661543,1713195043114,-500.0,0.00032876,7]
[322661544,1713195043122,-500.0,0.00032876,7]
[322661546,1713195043132,-1000.0,0.00032876,2]
[322661560,1713195043297,-541.60146977,0.00032876,7]
[322661565,1713195043316,-500.0,0.00032876,7]
[322661570,1713195043326,-500.47438899,0.00032876,7]
[322661573,1713195043336,-312.30502991,0.00032876,7]
[322661576,1713195043349,-540.95760803,0.00032876,7]
[322661580,1713195043360,-500.0,0.00032876,7]
[322661583,1713195043369,-500.0,0.00032876,7]
[322661586,1713195043379,-501.37249857,0.00032876,7]
[322661589,1713195043389,-2634.01,0.00032876,7]
[322661591,1713195043399,-500.0,0.00032876,7]
[322661594,1713195043409,-509.26967019,0.00032876,7]
[322661597,1713195043419,-500.66133456,0.00032876,7]
[322661599,1713195043428,-500.0,0.00032876,7]
[322661602,1713195043437,-379.55339058,0.00032876,7]
[322661604,1713195043446,-501.06899842,0.00032876,7]
[322661607,1713195043456,-500.0,0.00032876,7]
[322661610,1713195043465,-500.0,0.00032876,7]
[322661613,1713195043474,-795.16626673,0.00032876,4]
[322661615,1713195043483,-500.0,0.00032876,7]
[322661618,1713195043493,-500.0,0.00032876,7]
[322661621,1713195043502,-500.90292457,0.00032876,7]
[322661624,1713195043512,-500.0,0.00032876,7]
[322661626,1713195043525,-500.42622041,0.00032876,7]
[322661628,1713195043534,-500.0,0.00032876,7]
[322661630,1713195043543,-507.75063778,0.00032876,7]
[322661632,1713195043555,-250.04663333,0.00032876,7]
[322661634,1713195043564,-500.0,0.00032876,7]
[322661636,1713195043574,-580.38035158,0.00032876,7]
[322661638,1713195043583,-500.0,0.00032876,7]
[322661639,1713195043596,-847.63,0.00032876,7]
[322661640,1713195043606,-500.0,0.00032876,7]
[322661641,1713195043615,-564.42581654,0.00032876,7]
[322661642,1713195043624,-500.0,0.00032876,7]
[322661643,1713195043634,-500.0,0.00032876,7]
[322661644,1713195043644,-342.9007668,0.00032876,7]
[322661645,1713195043653,-500.0,0.00032876,7]
[322661646,1713195043662,-501.17964239,0.00032876,7]
[322661647,1713195043671,-500.0,0.00032876,7]
[322661648,1713195043680,-500.0,0.00032876,7]
[322661649,1713195043690,-500.0,0.00032876,7]
[322661650,1713195043700,-208.675397,0.00032876,2]
[322661651,1713195043709,-208.675397,0.00032876,2]
[322661652,1713195043718,-208.675397,0.00032876,2]
[322661653,1713195043727,-208.675397,0.00032876,2]
[322661654,1713195043736,-671.17,0.00032876,7]
[322661655,1713195043746,-500.0,0.00032876,7]
[322661656,1713195043754,-1003.2,0.00032876,7]
[322661657,1713195043763,-500.0,0.00032876,7]
[322661658,1713195043772,-208.675397,0.00032876,2]
[322661659,1713195043781,-208.675397,0.00032876,2]
[322661660,1713195043790,-208.675397,0.00032876,2]
[322661661,1713195043800,-208.675397,0.00032876,2]
[322661662,1713195043809,-500.44211465,0.00032876,7]
[322661663,1713195043818,-500.0,0.00032876,7]
[322661664,1713195043827,-500.0,0.00032876,7]
[322661665,1713195043836,-590.78,0.00032876,7]
[322661666,1713195043848,-500.0,0.00032876,7]
[322661667,1713195043857,-1089.47,0.00032876,7]
[322661668,1713195043866,-500.0,0.00032876,7]
[322661669,1713195043875,-500.0,0.00032876,7]
[322661670,1713195043884,-500.0,0.00032876,7]
[322661671,1713195043893,-151.0,0.00032876,2]
[322661672,1713195043902,-247.08671596,0.00032876,7]
[322661673,1713195043911,-213.745025,0.00032876,2]
[322661674,1713195043921,-500.0,0.00032876,7]
[322661675,1713195043930,-575.82,0.00032876,7]
[322661676,1713195043940,-182.30918949,0.00032876,7]
[322661677,1713195043949,-606.51188142,0.00032876,7]
[322661678,1713195043958,-500.0,0.00032876,7]
[322661679,1713195043967,-623.28,0.00032876,7]
[322661680,1713195043976,-500.0,0.00032876,7]
[322661681,1713195043985,-500.0,0.00032876,7]
[322661682,1713195043995,-500.0,0.00032876,7]
[322661683,1713195044003,-503.58533581,0.00032876,7]
[322661684,1713195044012,-503.84100235,0.00032876,7]
[322661685,1713195044021,-500.0,0.00032876,7]
[322661686,1713195044030,-500.0,0.00032876,7]
[322661687,1713195044039,-500.0,0.00032876,7]
[322661688,1713195044048,-713.17,0.00032876,7]
[322661689,1713195044057,-500.0,0.00032876,7]
[322661690,1713195044066,-500.0,0.00032876,7]
[322661691,1713195044075,-500.0,0.00032876,7]
[322661692,1713195044086,-500.0,0.00032876,7]
[322661693,1713195044095,-500.0,0.00032876,7]
[322661694,1713195044104,-200.56078508,0.00032876,7]
[322661695,1713195044114,-500.0,0.00032876,7]
[322661697,1713195044123,-500.0,0.00032876,7]
[322661699,1713195044132,-502.62058759,0.00032876,7]
[322661700,1713195044142,-652.33,0.00032876,7]
[322661701,1713195044150,-500.0,0.00032876,7]
[322661702,1713195044160,-260.43191565,0.00032876,7]
[322661703,1713195044169,-500.0,0.00032876,7]
[322661704,1713195044178,-500.0,0.00032876,7]
[322661706,1713195044187,-500.0,0.00032876,7]
[322661708,1713195044196,-500.0,0.00032876,7]
[322661710,1713195044205,-500.0,0.00032876,7]
[322661712,1713195044215,-347.49450367,0.00032876,7]
[322661714,1713195044224,-500.0,0.00032876,7]
[322661716,1713195044234,-500.0,0.00032876,7]
[322661718,1713195044243,-1895.85,0.00032876,7]
[322661719,1713195044252,-500.0,0.00032876,7]
[322661721,1713195044262,-500.0,0.00032876,7]
[322661723,1713195044271,-500.0,0.00032876,7]
[322661725,1713195044281,-500.62243868,0.00032876,7]
[322661727,1713195044290,-1960.27,0.00032876,7]
[322661729,1713195044299,-500.0,0.00032876,7]
[322661732,1713195044309,-500.0,0.00032876,7]
[322661734,1713195044319,-538.83616492,0.00032876,7]
[322661736,1713195044329,-500.0,0.00032876,7]
[322661738,1713195044341,-624.01313666,0.00032876,7]
[322661740,1713195044352,-500.0,0.00032876,7]
[322661742,1713195044362,-500.0,0.00032876,7]
[322661744,1713195044371,-500.0,0.00032876,7]
[322661746,1713195044380,-3018.7,0.00032876,7]
[322661748,1713195044389,-500.0,0.00032876,7]
[322661750,1713195044397,-500.0,0.00032876,7]
[322661752,1713195044407,-506.2178269,0.00032876,7]
[322661754,1713195044419,-500.0,0.00032876,7]
[322661756,1713195044432,-151.0,0.00032876,2]
[322661758,1713195044443,-151.0,0.00032876,2]
[322661760,1713195044453,-151.0,0.00032876,2]
[322661762,1713195044462,-151.0,0.00032876,2]
[322661764,1713195044472,-521.28866419,0.00032876,7]
[322661766,1713195044481,-500.0,0.00032876,7]
[322661768,1713195044490,-500.0,0.00032876,7]
[322661769,1713195044502,-617.9731336,0.00032876,7]
[322661771,1713195044512,-500.0,0.00032876,7]
[322661772,1713195044525,-461.11073422,0.00032876,7]
[322661773,1713195044534,-500.0,0.00032876,7]
[322661774,1713195044544,-500.0,0.00032876,7]
[322661775,1713195044553,-3126.18,0.00032876,7]
[322661776,1713195044563,-557.31,0.00032876,7]
[322661777,1713195044571,-500.0,0.00032876,7]
[322661778,1713195044581,-757.85,0.00032876,7]
[322661779,1713195044590,-500.0,0.00032876,7]
[322661780,1713195044602,-500.0,0.00032876,7]
[322661781,1713195044611,-500.0,0.00032876,7]
[322661782,1713195044621,-500.0,0.00032876,7]
[322661783,1713195044630,-719.65,0.00032876,7]
[322661784,1713195044639,-500.0,0.00032876,7]
[322661785,1713195044649,-500.0,0.00032876,7]
[322661786,1713195044658,-6792.28,0.00032876,7]
[322661787,1713195044667,-500.0,0.00032876,7]
[322661788,1713195044677,-564.14,0.00032876,7]
[322661789,1713195044686,-500.0,0.00032876,7]
[322661791,1713195044695,-9058.56,0.00032876,7]
[322661792,1713195044704,-500.0,0.00032876,7]
[322661793,1713195044713,-1776.83,0.00032876,7]
[322661795,1713195044722,-500.0,0.00032876,7]
[322661796,1713195044731,-500.0,0.00032876,7]
[322661797,1713195044740,-1932.9,0.00032876,7]
[322661798,1713195044749,-500.0,0.00032876,7]
[322661799,1713195044759,-731.34,0.00032876,7]
[322661800,1713195044768,-500.0,0.00032876,7]
[322661801,1713195044777,-2791.46,0.00032876,7]
[322661802,1713195044787,-500.0,0.00032876,7]
[322661803,1713195044796,-500.0,0.00032876,7]
[322661804,1713195044806,-500.0,0.00032876,7]
[322661805,1713195044815,-2623.62,0.00032876,7]
[322661806,1713195044824,-500.0,0.00032876,7]
[322661807,1713195044834,-500.0,0.00032876,7]
[322661808,1713195044843,-500.0,0.00032876,7]
[322661809,1713195044854,-4507.1,0.00032876,7]
[322661810,1713195044863,-501.93797411,0.00032876,7]
[322661811,1713195044873,-500.0,0.00032876,7]
[322661812,1713195044882,-500.0,0.00032876,7]
[322661813,1713195044892,-500.0,0.00032876,7]
[322661814,1713195044902,-500.0,0.00032876,7]
[322661815,1713195044911,-500.0,0.00032876,7]
[322661816,1713195044920,-500.0,0.00032876,7]
[322661817,1713195044929,-927.93,0.00032876,7]
[322661818,1713195044939,-1028.49,0.00032876,7]
[322661819,1713195044949,-500.58997174,0.00032876,7]
[322661820,1713195044959,-500.0,0.00032876,7]
[322661821,1713195044969,-16552.91,0.00032876,7]
[322661822,1713195044978,-500.0,0.00032876,7]
[322661823,1713195044987,-500.0,0.00032876,7]
[322661824,1713195044996,-3791.99,0.00032876,7]
[322661825,1713195045005,-632.31,0.00032876,7]
[322661826,1713195045015,-932.35,0.00032876,7]
[322661827,1713195045024,-551.33761884,0.00032876,7]
[322661828,1713195045033,-500.29622081,0.00032876,7]
[322661829,1713195045042,-500.0,0.00032876,7]
[322661830,1713195045052,-500.48828616,0.00032876,7]
[322661831,1713195045062,-500.0,0.00032876,7]
[322661832,1713195045071,-500.0,0.00032876,7]
[322661833,1713195045080,-500.0,0.00032876,7]
[322661834,1713195045090,-500.0,0.00032876,7]
[322661835,1713195045103,-1572.43,0.00032876,7]
[322661836,1713195045113,-500.0,0.00032876,7]
[322661837,1713195045122,-500.0,0.00032876,7]
[322661838,1713195045132,-839.29,0.00032876,7]
[322661839,1713195045142,-500.0,0.00032876,7]
[322661840,1713195045151,-500.0,0.00032876,7]
[322661841,1713195045160,-1505.25,0.00032876,7]
[322661842,1713195045169,-500.0,0.00032876,7]
[322661843,1713195045179,-568.35,0.00032876,7]
[322661844,1713195045189,-500.0,0.00032876,7]
[322661845,1713195045198,-500.0,0.00032876,7]
[322661846,1713195045207,-2076.23,0.00032876,7]
[322661847,1713195045217,-500.0,0.00032876,7]
[322661848,1713195045226,-500.0,0.00032876,7]
[322661849,1713195045235,-500.0,0.00032876,7]
[322661850,1713195045244,-663.75,0.00032876,7]
[322661851,1713195045253,-477.447791,0.00032876,2]
[322661852,1713195045262,-477.447791,0.00032876,2]
[322661853,1713195045272,-477.447791,0.00032876,2]
[322661854,1713195045282,-477.447791,0.00032876,2]
[322661855,1713195045291,-477.447791,0.00032876,2]
[322661856,1713195045301,-477.447791,0.00032876,2]
[322661857,1713195045310,-500.0,0.00032876,7]
[322661858,1713195045319,-500.0,0.00032876,7]
[322661859,1713195045329,-477.447791,0.00032876,2]
[322661860,1713195045338,-477.447791,0.00032876,2]
[322661861,1713195045350,-500.0,0.00032876,7]
[322661862,1713195045359,-477.447791,0.00032876,2]
[322661863,1713195045368,-477.447791,0.00032876,2]
[322661864,1713195045377,-500.0,0.00032876,7]
[322661865,1713195045386,-477.447791,0.00032876,2]
[322661866,1713195045396,-477.447791,0.00032876,2]
[322661867,1713195045405,-310.41617973,0.00032876,7]
[322661868,1713195045415,-500.0,0.00032876,7]
[322661869,1713195045424,-500.0,0.00032876,7]
[322661870,1713195045434,-26323.24,0.00032876,7]
[322661871,1713195045443,-1078.88,0.00032876,7]
[322661872,1713195045454,-500.0,0.00032876,7]
[322661873,1713195045464,-500.0,0.00032876,7]
[322661874,1713195045473,-50959.28,0.00032876,7]
[322661875,1713195045483,-505.00324321,0.00032876,7]
[322661876,1713195045492,-500.0,0.00032876,7]
[322661877,1713195045502,-1145.97,0.00032876,7]
[322661878,1713195045512,-500.0,0.00032876,7]
[322661879,1713195045524,-500.0,0.00032876,7]
[322661880,1713195045533,-500.0,0.00032876,7]
[322661881,1713195045542,-862.73,0.00032876,7]
[322661882,1713195045552,-500.0,0.00032876,7]
[322661883,1713195045563,-500.0,0.00032876,7]
[322661884,1713195045572,-5588.24,0.00032876,7]
[322661885,1713195045581,-500.0,0.00032876,7]
[322661886,1713195045590,-500.97873739,0.00032876,7]
[322661887,1713195045603,-585.92229088,0.00032876,7]
[322661888,1713195045612,-500.0,0.00032876,7]
[322661889,1713195045622,-500.0,0.00032876,7]
[322661890,1713195045632,-283.570857,0.00032876,2]
[322661891,1713195045641,-10616.55,0.00032876,7]
[322661892,1713195045651,-5593.81,0.00032876,7]
[322661893,1713195045660,-1167.71,0.00032876,7]
[322661894,1713195045669,-500.0,0.00032876,7]
[322661895,1713195045679,-539.03,0.00032876,7]
[322661896,1713195045688,-500.0,0.00032876,7]
[322661897,1713195045697,-510.41384822,0.00032876,7]
[322661898,1713195045706,-500.0,0.00032876,7]
[322661899,1713195045715,-381.30544139,0.00032876,7]
[322661900,1713195045725,-151.0,0.00032876,2]
[322661901,1713195045734,-151.0,0.00032876,2]
[322661902,1713195045743,-151.0,0.00032876,2]
[322661903,1713195045752,-819.99,0.00032876,7]
[322661904,1713195045762,-3211.31,0.00032876,7]
[322661905,1713195045771,-500.0,0.00032876,7]
[322661906,1713195045781,-500.0,0.00032876,7]
[322661907,1713195045791,-500.0,0.00032876,7]
[322661908,1713195045800,-500.96575619,0.00032876,7]
[322661909,1713195045810,-500.0,0.00032876,7]
[322661910,1713195045819,-2334.44,0.00032876,7]
[322661911,1713195045829,-500.0,0.00032876,7]
[322661912,1713195045838,-1110.43,0.00032876,7]
[322661913,1713195045849,-828.9,0.00032876,7]
[322661914,1713195045859,-500.0,0.00032876,7]
[322661915,1713195045868,-503.34051274,0.00032876,7]
[322661916,1713195045877,-500.0,0.00032876,7]
[322661917,1713195045886,-494.28968635,0.00032876,7]
[322661918,1713195045895,-500.0,0.00032876,7]
[322661919,1713195045905,-21082.18,0.00032876,7]
[322661920,1713195045914,-21082.18,0.00032876,7]
[322661921,1713195045923,-21082.18,0.00032876,7]
[322661922,1713195045933,-21082.18,0.00032876,7]
[322661923,1713195045942,-525.86198554,0.00032876,7]
[322661924,1713195045951,-21082.18,0.00032876,7]
[322661925,1713195045960,-21082.18,0.00032876,7]
[322661926,1713195045970,-500.0,0.00032876,7]
[322661927,1713195045979,-21082.18,0.00032876,7]
[322661928,1713195045988,-567.09,0.00032876,7]
[322661929,1713195045998,-500.0,0.00032876,7]
[322661930,1713195046007,-21082.18,0.00032876,7]
[322661931,1713195046017,-21082.18,0.00032876,7]
[322661932,1713195046027,-21082.18,0.00032876,7]
[322661933,1713195046036,-21082.18,0.00032876,7]
[322661934,1713195046046,-21082.18,0.00032876,7]
[322661935,1713195046055,-21082.18,0.00032876,7]
[322661936,1713195046064,-21082.18,0.00032876,7]
[322661937,1713195046074,-21082.18,0.00032876,7]
[322661938,1713195046083,-21082.18,0.00032876,7]
[322661939,1713195046093,-21082.18,0.00032876,7]
[322661940,1713195046103,-501.29666527,0.00032876,7]
[322661941,1713195046113,-500.0,0.00032876,7]
[322661942,1713195046123,-500.0,0.00032876,7]
[322661943,1713195046136,-500.0,0.00032876,7]
[322661945,1713195046145,-816.1,0.00032876,7]
[322661947,1713195046159,-220.70634571,0.00032876,7]
[322661949,1713195046168,-500.0,0.00032876,7]
[322661951,1713195046177,-500.0,0.00032876,7]
[322661955,1713195046298,-1521.375515,0.00032876,2]
[322661956,1713195046308,-1521.375515,0.00032876,2]
[322661957,1713195046318,-500.0,0.00032876,7]
[322661958,1713195046328,-1521.375515,0.00032876,2]
[322661959,1713195046339,-1521.375515,0.00032876,2]
[322661960,1713195046355,-1521.375515,0.00032876,2]
[322661961,1713195046365,-431.14969109,0.00032876,7]
[322661962,1713195046375,-1521.375515,0.00032876,2]
[322661963,1713195046387,-1521.375515,0.00032876,2]
[322661964,1713195046396,-2945.49,0.00032876,7]
[322661965,1713195046407,-151.0,0.00032876,2]
[322661966,1713195046417,-500.0,0.00032876,7]
[322661967,1713195046427,-151.0,0.00032876,2]
[322661968,1713195046436,-151.0,0.00032876,2]
[322661969,1713195046446,-151.0,0.00032876,2]
[322661970,1713195046455,-151.0,0.00032876,2]
[322661971,1713195046464,-151.0,0.00032876,2]
[322661972,1713195046474,-151.0,0.00032876,2]
[322661973,1713195046484,-5523.1,0.00032876,7]
[322661974,1713195046493,-500.0,0.00032876,7]
[322661975,1713195046503,-500.0,0.00032876,7]
[322661976,1713195046515,-230.023646,0.00032876,2]
[322661977,1713195046529,-1521.375515,0.00032876,2]
[322661978,1713195046538,-151.0,0.00032876,2]